fUST/lending_fUST_20250318
["ID","MTS","AMOUNT","RATE_DAILY","PERIOD"]
[356333558,1742286694751,-1141.65,0.00012602,2]
[356333559,1742286694761,-500.0,0.00012602,2]
[356333560,1742286694770,-6740.53,0.00012602,2]
[356333561,1742286694780,-1590.13,0.00012602,2]
[356333562,1742286694790,-700.85,0.00012602,2]
[356333563,1742286694800,-9675.79,0.00012602,2]
[356333564,1742286694810,-884.32,0.00012602,2]
[356333565,1742286694820,-2187.92,0.00012602,2]
[356333566,1742286694830,-3166.23,0.00012602,2]
[356333567,1742286694840,-500.0,0.00012602,2]
[356333568,1742286694851,-846.0,0.00012602,2]
[356333569,1742286694862,-847.69,0.00012602,2]
[356333570,1742286694871,-1476.4,0.00012602,2]
[356333571,1742286694880,-1068.47,0.00012602,2]
[356333572,1742286694890,-2552.77,0.00012602,2]
[356333573,1742286694899,-8078.39,0.00012602,2]
[356333574,1742286694908,-574.26,0.00012602,2]
[356333575,1742286694918,-3125.56,0.00012602,2]
[356333576,1742286694928,-500.0,0.00012602,2]
[356333577,1742286694938,-2010.1,0.00012602,2]
[356333578,1742286694948,-890.39,0.00012602,2]
[356333579,1742286694958,-602.83,0.00012602,2]
[356333580,1742286694968,-324.67039694,0.00012602,2]
[356333581,1742286694978,-1007.4,0.00012602,2]
[356333582,1742286694987,-4662.69,0.00012602,2]
[356333583,1742286694997,-500.0,0.00012602,2]
[356333584,1742286695007,-1611.39,0.00012602,2]
[356333585,1742286695017,-642.65,0.00012602,2]
[356333586,1742286695027,-500.0,0.00012602,2]
[356333587,1742286695037,-628.53,0.00012602,2]
[356333588,1742286695047,-500.0,0.00012602,2]
[356333589,1742286695057,-1500.8,0.00012602,2]
[356333590,1742286695066,-778.05,0.00012602,2]
[356333591,1742286695076,-663.29,0.00012602,2]
[356333592,1742286695086,-690.44,0.00012602,2]
[356333593,1742286695095,-500.0,0.0001262,2]
[356333594,1742286695105,-311.89753766,0.0001269,2]
[356333595,1742286695115,-1443.0,0.000127,4]
[356333596,1742286695127,-502.89,0.00012876,2]
[356333597,1742286695139,-500.0,0.00012876,2]
[356333598,1742286695148,-161.45024826,0.00012876,2]
[356333599,1742286695157,-500.0,0.00012876,2]
[356333600,1742286695166,-500.0,0.00012876,2]
[356333601,1742286695177,-622.72,0.00012876,2]
[356333602,1742286695187,-917.74,0.00012876,2]
[356333603,1742286695196,-500.0,0.00012876,2]
[356333604,1742286695207,-1028.0,0.00012876,2]
[356333605,1742286695217,-1921.6,0.00012876,2]
[356333606,1742286695227,-653.08,0.00012876,2]
[356333607,1742286695236,-2008.81,0.00012876,2]
[356333608,1742286695245,-2178.78,0.00012876,2]
[356333609,1742286695255,-2521.8,0.00012876,2]
[356333610,1742286695265,-529.85,0.00012876,2]
[356333611,1742286695274,-922.48,0.00012876,2]
[356333612,1742286695285,-680.36,0.00012876,2]
[356333613,1742286695295,-610.02,0.00012876,2]
[356333614,1742286695305,-682.75,0.00012876,2]
[356333615,1742286695315,-500.0,0.00012876,2]
[356333616,1742286695325,-674.0,0.00012876,2]
[356333617,1742286695334,-2151.35,0.00012876,2]
[356333618,1742286695343,-1105.69,0.00012876,2]
[356333619,1742286695352,-1281.22,0.00012876,2]
[356333620,1742286695361,-500.0,0.00012876,2]
[356333621,1742286695371,-778.89,0.00012876,2]
[356333622,1742286695380,-14498.22,0.00012876,2]
[356333623,1742286695389,-763.96,0.00012876,2]
[356333624,1742286695399,-2492.38,0.00012876,2]
[356333625,1742286695408,-885.14,0.00012876,2]
[356333626,1742286695417,-626.66,0.00012876,2]
[356333627,1742286695427,-523.83546828,0.00012876,2]
[356333628,1742286695436,-1236.95,0.00012876,2]
[356333629,1742286695446,-1394.36,0.00012876,2]
[356333630,1742286695455,-667.87,0.00012876,2]
[356333631,1742286695468,-500.0,0.00012876,2]
[356333632,1742286695478,-1394.43,0.00012876,2]
[356333633,1742286695487,-5190.96,0.00012876,2]
[356333634,1742286695497,-1898.09,0.00012876,2]
[356333635,1742286695507,-505.21,0.00012876,2]
[356333636,1742286695516,-604.25,0.00012876,2]
[356333637,1742286695525,-500.0,0.00012876,2]
[356333638,1742286695536,-687.55,0.00012876,2]
[356333639,1742286695545,-1875.08,0.00012876,2]
[356333640,1742286695554,-517.9,0.00012876,2]
[356333641,1742286695564,-6229.78,0.00012876,2]
[356333642,1742286695574,-500.0,0.00012876,2]
[356333643,1742286695583,-10748.02,0.00012876,2]
[356333644,1742286695593,-4015.9,0.00012876,2]
[356333645,1742286695602,-7811.31,0.00012876,2]
[356333646,1742286695611,-1219.17,0.00012876,2]
[356333647,1742286695621,-500.0,0.00012876,2]
[356333648,1742286695631,-500.0,0.00012876,2]
[356333649,1742286695641,-5865.91,0.00012876,2]
[356333650,1742286695651,-1567.61,0.00012876,2]
[356333651,1742286695660,-2101.67,0.00012876,2]
[356333652,1742286695669,-1103.93,0.00012876,2]
[356333653,1742286695679,-1658.96,0.00012876,2]
[356333654,1742286695688,-98083.34,0.00012876,2]
[356333655,1742286695697,-656.05,0.00012876,2]
[356333656,1742286695707,-2562.21,0.00012876,2]
[356333657,1742286695715,-3833.09,0.00012876,2]
[356333658,1742286695724,-1785.76,0.00012876,2]
[356333659,1742286695733,-1141.65,0.00012876,2]
[356333660,1742286695743,-248.50951722,0.00012876,2]
[356333661,1742286695753,-6740.53,0.00012876,2]
[356333662,1742286695762,-1590.13,0.00012876,2]
[356333663,1742286695770,-700.85,0.00012876,2]
[356333664,1742286695779,-9675.79,0.00012876,2]
[356333665,1742286695790,-884.32,0.00012876,2]
[356333666,1742286695800,-2187.92,0.00012876,2]
[356333667,1742286695809,-3166.23,0.00012876,2]
[356333668,1742286695819,-500.0,0.00012876,2]
[356333669,1742286695829,-846.0,0.00012876,2]
[356333670,1742286695839,-847.69,0.00012876,2]
[356333671,1742286695848,-1476.4,0.00012876,2]
[356333672,1742286695857,-1068.47,0.00012876,2]
[356333673,1742286695867,-2552.77,0.00012876,2]
[356333674,1742286695876,-8078.39,0.00012876,2]
[356333675,1742286695886,-574.26,0.00012876,2]
[356333676,1742286695896,-3125.56,0.00012876,2]
[356333677,1742286695906,-500.0,0.00012876,2]
[356333678,1742286695916,-2010.1,0.00012876,2]
[356333679,1742286695925,-890.39,0.00012876,2]
[356333680,1742286695935,-602.83,0.00012876,2]
[356333681,1742286695946,-1007.4,0.00012876,2]
[356333682,1742286695956,-4662.69,0.00012876,2]
[356333683,1742286695966,-500.0,0.00012876,2]
[356333684,1742286695975,-1611.39,0.00012876,2]
[356333685,1742286695985,-642.65,0.00012876,2]
[356333686,1742286695994,-500.0,0.00012876,2]
[356333687,1742286696004,-628.53,0.00012876,2]
[356333688,1742286696014,-178.64408317,0.00012876,2]
[356333689,1742286696023,-1500.8,0.00012876,2]
[356333690,1742286696033,-778.05,0.00012876,2]
[356333691,1742286696043,-663.29,0.00012876,2]
[356333692,1742286696053,-690.44,0.00012876,2]
[356333693,1742286696063,-1613.0,0.00012881,2]
[356333694,1742286696072,-500.0,0.00012999,2]
[356333695,1742286696081,-3372.9294923,0.00012999,7]
[356333696,1742286696091,-1817920.18585753,0.00013,2]
[356333697,1742286696102,-1300.0,0.00013,4]
[356333698,1742286696111,-1008.94245768,0.00013,5]
[356333699,1742286696121,-659.29,0.00013,2]
[356333700,1742286696132,-500.0,0.00013,2]
[356333701,1742286696142,-500.0,0.00013,2]
[356333702,1742286696151,-500.0,0.00013,2]
[356333703,1742286696160,-500.0,0.00013,2]
[356333704,1742286696170,-500.0,0.00013,2]
[356333705,1742286696179,-500.0,0.00013,2]
[356333706,1742286696189,-300.0,0.00013,2]
[356333707,1742286696198,-500.0,0.00013,2]
[356333708,1742286696209,-500.0,0.00013,2]
[356333709,1742286696219,-22188.4955761,0.00013,2]
[356333710,1742286696229,-43000.0,0.00013,2]
[356333711,1742286696238,-200.0,0.00013,2]
[356333712,1742286696247,-2005.76717044,0.00013,2]
[356333713,1742286696255,-500.0,0.00013,2]
[356333714,1742286696264,-500.0,0.00013,2]
[356333715,1742286696273,-500.0,0.00013,2]
[356333716,1742286696283,-500.0,0.00013,2]
[356333717,1742286696292,-524.12,0.00013,2]
[356333718,1742286696302,-500.0,0.00013,2]
[356333719,1742286696311,-500.0,0.00013,2]
[356333720,1742286696320,-500.0,0.00013,2]
[356333721,1742286696330,-500.0,0.00013,2]
[356333722,1742286696339,-500.0,0.00013,2]
[356333723,1742286696349,-272.36,0.00013,2]
[356333724,1742286696359,-500.0,0.00013,2]
[356333725,1742286696369,-500.0,0.00013,2]
[356333726,1742286696378,-500.0,0.00013,2]
[356333727,1742286696387,-500.0,0.00013,2]
[356333728,1742286696398,-500.0,0.00013,2]
[356333729,1742286696408,-500.0,0.00013,2]
[356333730,1742286696417,-500.0,0.00013,2]
[356333731,1742286696426,-500.0,0.00013,2]
[356333732,1742286696436,-500.0,0.00013,2]
[356333733,1742286696444,-500.0,0.00013,2]
[356333734,1742286696453,-500.0,0.00013,2]
[356333735,1742286696463,-500.0,0.00013,2]
[356333736,1742286696472,-500.0,0.00013,2]
[356333737,1742286696481,-500.0,0.00013,2]
[356333738,1742286696491,-500.0,0.00013,2]
[356333739,1742286696501,-500.0,0.00013,2]
[356333740,1742286696511,-500.0,0.00013,2]
[356333741,1742286696520,-500.0,0.00013,2]
[356333742,1742286696529,-500.0,0.00013,2]
[356333743,1742286696538,-500.0,0.00013,2]
[356333744,1742286696546,-500.0,0.00013,2]
[356333745,1742286696555,-500.0,0.00013,2]
[356333746,1742286696564,-500.0,0.00013,2]
[356333747,1742286696573,-500.0,0.00013,2]
[356333748,1742286696582,-500.0,0.00013,2]
[356333749,1742286696591,-500.0,0.00013,2]
[356333750,1742286696600,-500.0,0.00013,2]
[356333751,1742286696609,-500.0,0.00013,2]
[356333752,1742286696618,-500.0,0.00013,2]
[356333753,1742286696626,-500.0,0.00013,2]
[356333754,1742286696635,-500.0,0.00013,2]
[356333755,1742286696644,-500.0,0.00013,2]
[356333756,1742286696652,-500.0,0.00013,2]
[356333757,1742286696661,-500.0,0.00013,2]
[356333758,1742286696670,-500.0,0.00013,2]
[356333759,1742286696679,-500.0,0.00013,2]
[356333760,1742286696688,-500.0,0.00013,2]
[356333761,1742286696698,-500.0,0.00013,2]
[356333762,1742286696707,-500.0,0.00013,2]
[356333763,1742286696715,-500.0,0.00013,2]
[356333764,1742286696724,-500.0,0.00013,2]
[356333765,1742286696733,-500.0,0.00013,2]
[356333766,1742286696742,-500.0,0.00013,2]
[356333767,1742286696751,-500.0,0.00013,2]
[356333768,1742286696759,-500.0,0.00013,2]
[356333769,1742286696768,-500.0,0.00013,2]
[356333770,1742286696777,-500.0,0.00013,2]
[356333771,1742286696786,-500.0,0.00013,2]
[356333772,1742286696795,-500.0,0.00013,2]
[356333773,1742286696804,-500.0,0.00013,2]
[356333774,1742286696813,-500.0,0.00013,2]
[356333775,1742286696822,-500.0,0.00013,2]
[356333776,1742286696831,-500.0,0.00013,2]
[356333777,1742286696840,-500.0,0.00013,2]
[356333778,1742286696849,-500.0,0.00013,2]
[356333779,1742286696858,-500.0,0.00013,2]
[356333780,1742286696867,-500.0,0.00013,2]
[356333781,1742286696876,-500.0,0.00013,2]
[356333782,1742286696885,-500.0,0.00013,2]
[356333783,1742286696894,-500.0,0.00013,2]
[356333784,1742286696903,-500.0,0.00013,2]
[356333785,1742286696913,-500.0,0.00013,2]
[356333786,1742286696923,-500.0,0.00013,2]
[356333787,1742286696932,-500.0,0.00013,2]
[356333788,1742286696942,-500.0,0.00013,2]
[356333789,1742286696951,-500.0,0.00013,2]
[356333790,1742286696960,-500.0,0.00013,2]
[356333791,1742286696970,-500.0,0.00013,2]
[356333792,1742286696979,-500.0,0.00013,2]
[356333793,1742286696988,-500.0,0.00013,2]
[356333794,1742286696998,-500.0,0.00013,2]
[356333795,1742286697007,-500.0,0.00013,2]
[356333796,1742286697016,-500.0,0.00013,2]
[356333797,1742286697025,-173.83,0.00013,2]
[356333798,1742286697034,-500.0,0.00013,2]
[356333799,1742286697044,-500.0,0.00013,2]
[356333800,1742286697053,-500.0,0.00013,2]
[356333801,1742286697062,-500.0,0.00013,2]
[356333802,1742286697071,-500.0,0.00013,2]
[356333803,1742286697081,-500.0,0.00013,2]
[356333804,1742286697091,-500.0,0.00013,2]
[356333805,1742286697100,-500.0,0.00013,2]
[356333806,1742286697110,-500.0,0.00013,2]
[356333807,1742286697121,-500.0,0.00013,2]
[356333808,1742286697133,-500.0,0.00013,2]
[356333809,1742286697142,-500.0,0.00013,2]
[356333810,1742286697152,-500.0,0.00013,2]
[356333811,1742286697161,-500.0,0.00013,2]
[356333812,1742286697173,-500.0,0.00013,2]
[356333813,1742286697345,-365.7060786,0.00013096,2]
[356333814,1742286697355,-389.95195366,0.00013096,2]
[356333815,1742286697364,-502.89,0.0001315,2]
[356333816,1742286697374,-500.0,0.0001315,2]
[356333817,1742286697383,-157.04,0.0001315,2]
[356333818,1742286697392,-226.30622989,0.0001315,2]
[356333819,1742286697402,-622.72,0.0001315,2]
[356333820,1742286697411,-917.74,0.0001315,2]
[356333821,1742286697421,-500.0,0.0001315,2]
[356333822,1742286697431,-1028.0,0.0001315,2]
[356333823,1742286697440,-1921.6,0.0001315,2]
[356333824,1742286697449,-653.08,0.0001315,2]
[356333825,1742286697459,-2008.81,0.0001315,2]
[356333826,1742286697468,-2178.78,0.0001315,2]
[356333827,1742286697478,-2521.8,0.0001315,2]
[356333828,1742286697488,-529.85,0.0001315,2]
[356333829,1742286697497,-922.48,0.0001315,2]
[356333830,1742286697507,-680.36,0.0001315,2]
[356333831,1742286697516,-610.02,0.0001315,2]
[356333832,1742286697526,-682.75,0.0001315,2]
[356333833,1742286697535,-500.0,0.0001315,2]
[356333834,1742286697544,-674.0,0.0001315,2]
[356333835,1742286697554,-2151.35,0.0001315,2]
[356333836,1742286697564,-1105.69,0.0001315,2]
[356333837,1742286697574,-1281.22,0.0001315,2]
[356333838,1742286697584,-500.0,0.0001315,2]
[356333839,1742286697594,-778.89,0.0001315,2]
[356333840,1742286697603,-14498.22,0.0001315,2]
[356333841,1742286697614,-763.96,0.0001315,2]
[356333842,1742286697624,-2492.38,0.0001315,2]
[356333843,1742286697634,-885.14,0.0001315,2]
[356333844,1742286697644,-626.66,0.0001315,2]
[356333845,1742286697654,-1236.95,0.0001315,2]
[356333846,1742286697664,-1394.36,0.0001315,2]
[356333847,1742286697674,-667.87,0.0001315,2]
[356333848,1742286697684,-492.35257899,0.0001315,2]
[356333849,1742286697694,-1394.43,0.0001315,2]
[356333850,1742286697705,-5190.96,0.0001315,2]
[356333851,1742286697715,-1898.09,0.0001315,2]
[356333852,1742286697725,-505.21,0.0001315,2]
[356333853,1742286697736,-604.25,0.0001315,2]
[356333854,1742286697746,-500.0,0.0001315,2]
[356333855,1742286697756,-687.55,0.0001315,2]
[356333856,1742286697766,-1875.08,0.0001315,2]
[356333857,1742286697776,-517.9,0.0001315,2]
[356333858,1742286697786,-6229.78,0.0001315,2]
[356333859,1742286697796,-576.58,0.0001315,2]
[356333860,1742286697806,-10748.02,0.0001315,2]
[356333861,1742286697816,-4015.9,0.0001315,2]
[356333862,1742286697825,-7811.31,0.0001315,2]
[356333863,1742286697835,-1219.17,0.0001315,2]
[356333864,1742286697846,-500.0,0.0001315,2]
[356333865,1742286697856,-500.0,0.0001315,2]
[356333866,1742286697866,-5865.91,0.0001315,2]
[356333867,1742286697875,-1567.61,0.0001315,2]
[356333868,1742286697885,-2101.67,0.0001315,2]
[356333869,1742286697900,-1103.93,0.0001315,2]
[356333870,1742286697910,-1658.96,0.0001315,2]
[356333871,1742286697920,-59951.40325204,0.0001315,2]
[356333872,1742286698225,-12576.15808345,0.0001315,2]
[356333873,1742286698637,-500.0,8.219e-05,2]
[356333874,1742286698647,-1302.36102082,8.219e-05,2]
[356333875,1742286698656,-507.79663632,8.219e-05,2]
[356333876,1742286698666,-500.0,8.493e-05,2]
[356333877,1742286698675,-500.0,8.493e-05,2]
[356333878,1742286698685,-500.0,8.767e-05,2]
[356333879,1742286698695,-500.0,8.767e-05,2]
[356333880,1742286698707,-500.0,9.041e-05,2]
[356333881,1742286698716,-500.0,9.041e-05,2]
[356333882,1742286698726,-154.50632061,9.315e-05,2]
[356333883,1742286698736,-500.0,9.315e-05,2]
[356333884,1742286698746,-500.0,9.589e-05,2]
[356333885,1742286698755,-500.0,9.863e-05,2]
[356333886,1742286698765,-508.60345028,0.00010136,2]
[356333887,1742286698775,-500.0,0.00010958,2]
[356333888,1742286698784,-500.0,0.00011232,2]
[356333889,1742286698794,-500.0,0.00011506,2]
[356333890,1742286698803,-500.0,0.0001178,2]
[356333891,1742286698813,-500.0,0.00012054,2]
[356333892,1742286698823,-500.0,0.00012328,2]
[356333893,1742286698832,-500.0,0.00012602,2]
[356333894,1742286698841,-500.0,0.00012876,2]
[356333895,1742286698850,-25555.77866451,0.0001315,2]
[356333896,1742286698860,-656.05,0.0001315,2]
[356333897,1742286698869,-2562.21,0.0001315,2]
[356333898,1742286698878,-3833.09,0.0001315,2]
[356333899,1742286698888,-1785.76,0.0001315,2]
[356333900,1742286698897,-1141.65,0.0001315,2]
[356333901,1742286698907,-6740.53,0.0001315,2]
[356333902,1742286698916,-1590.13,0.0001315,2]
[356333903,1742286698926,-700.85,0.0001315,2]
[356333904,1742286698937,-9675.79,0.0001315,2]
[356333905,1742286698947,-884.32,0.0001315,2]
[356333906,1742286698957,-2187.92,0.0001315,2]
[356333907,1742286698966,-3166.23,0.0001315,2]
[356333908,1742286698975,-500.0,0.0001315,2]
[356333909,1742286698985,-846.0,0.0001315,2]
[356333910,1742286698995,-847.69,0.0001315,2]
[356333911,1742286699004,-1476.4,0.0001315,2]
[356333912,1742286699013,-1068.47,0.0001315,2]
[356333913,1742286699023,-2552.77,0.0001315,2]
[356333914,1742286699033,-8078.39,0.0001315,2]
[356333915,1742286699043,-574.26,0.0001315,2]
[356333916,1742286699052,-3125.56,0.0001315,2]
[356333917,1742286699061,-254.40700922,0.0001315,2]
[356333918,1742286699071,-2010.1,0.0001315,2]
[356333919,1742286699081,-890.39,0.0001315,2]
[356333920,1742286699090,-602.83,0.0001315,2]
[356333921,1742286699099,-1007.4,0.0001315,2]
[356333922,1742286699109,-4662.69,0.0001315,2]
[356333923,1742286699119,-500.0,0.0001315,2]
[356333924,1742286699130,-1611.39,0.0001315,2]
[356333925,1742286699139,-642.65,0.0001315,2]
[356333926,1742286699149,-500.0,0.0001315,2]
[356333927,1742286699159,-628.53,0.0001315,2]
[356333928,1742286699170,-1500.8,0.0001315,2]
[356333929,1742286699179,-778.05,0.0001315,2]
[356333930,1742286699188,-663.29,0.0001315,2]
[356333931,1742286699198,-690.44,0.0001315,2]
[356333932,1742286699208,-500.0,0.0001315,2]
[356333933,1742286699217,-365.7060786,0.00013151,2]
[356333934,1742286699226,-389.95195366,0.00013151,2]
[356333935,1742286699236,-365.7060786,0.00013205,2]
[356333936,1742286699245,-389.95195366,0.00013205,2]
[356333937,1742286699256,-213.83773086,0.00013285,2]
[356333942,1742287276995,153.65,0.000139,31]
[356333943,1742287277049,153.65,0.000139,31]
[356333944,1742287277112,153.65,0.000139,31]
[356333945,1742287277180,153.65,0.000139,31]
[356333946,1742287277236,153.65,0.000139,31]
[356333947,1742287277303,153.65,0.000139,31]
[356333948,1742287277452,153.65,0.000139,31]
[356333949,1742287686815,-168.26,7.179e-05,2]
[356333971,1742287838562,-8.846362,7.179e-05,2]
[356333972,1742287838573,-177.106362,7.252e-05,2]
[356333973,1742287838584,-276.42965636,8.119e-05,2]
[356333974,1742287838594,-422.34740728,8.119e-05,2]
[356333975,1742287838632,-812.55,8.119e-05,2]
[356334292,1742287843669,-1765.10259272,8.038e-05,2]
[356334294,1742287843680,-1765.10259272,8.119e-05,2]
[356334296,1742287843690,-600.0,8.214e-05,2]
[356334298,1742287843700,-300.0,8.217e-05,2]
[356334299,1742287843709,-179.47929567,8.218e-05,2]
[356334301,1742287843719,-300.10378272,8.218e-05,2]
[356334302,1742287843729,-500.0,8.218e-05,2]
[356334304,1742287843740,-500.0,8.218e-05,2]
[356334305,1742287843749,-500.0,8.218e-05,2]
[356334307,1742287843759,-500.0,8.218e-05,2]
[356334308,1742287843769,-176.25668043,8.218e-05,2]
[356334310,1742287843778,-211.51077804,8.219e-05,2]
[356334311,1742287843788,-500.0,8.219e-05,2]
[356334313,1742287843797,-500.0,8.219e-05,2]
[356334315,1742287843807,-502.46969791,8.219e-05,2]
[356334316,1742287843816,-540.96984376,8.219e-05,2]
[356334318,1742287843826,-502.10990811,8.219e-05,2]
[356334319,1742287843835,-501.08219259,8.219e-05,2]
[356334321,1742287843845,-501.59581578,8.219e-05,2]
[356334322,1742287843855,-501.68439323,8.219e-05,2]
[356334323,1742287843864,-500.0,8.219e-05,2]
[356334325,1742287843874,-504.17892449,8.219e-05,2]
[356334327,1742287843883,-513.48709031,8.219e-05,2]
[356334328,1742287843893,-299.99991055,8.219e-05,2]
[356334330,1742287843903,-504.58932777,8.219e-05,2]
[356334331,1742287843913,-540.06,8.219e-05,2]
[356334333,1742287843923,-500.0,8.219e-05,2]
[356334335,1742287843935,-540.06,8.219e-05,2]
[356334336,1742287843944,-540.06,8.219e-05,2]
[356334338,1742287843955,-540.06,8.219e-05,2]
[356334339,1742287843964,-540.06,8.219e-05,2]
[356334341,1742287843975,-540.06,8.219e-05,2]
[356334343,1742287843985,-540.06,8.219e-05,2]
[356334344,1742287843994,-540.06,8.219e-05,2]
[356334346,1742287844005,-540.06,8.219e-05,2]
[356334348,1742287844014,-540.06,8.219e-05,2]
[356334349,1742287844025,-540.06,8.219e-05,2]
[356334351,1742287844035,-540.06,8.219e-05,2]
[356334352,1742287844044,-500.0,8.219e-05,2]
[356334354,1742287844053,-54.36645308,8.219e-05,2]
[356334355,1742287844066,-445.63354692,8.219e-05,2]
[356334357,1742287844076,-500.0,8.219e-05,2]
[356334359,1742287844085,-504.80712974,8.219e-05,2]
[356334360,1742287844094,-505.56986752,8.219e-05,2]
[356334362,1742287844103,-504.77226962,8.219e-05,2]
[356334363,1742287844112,-504.12118431,8.219e-05,2]
[356334365,1742287844121,-505.35127644,8.219e-05,2]
[356334367,1742287844131,-505.41527874,8.219e-05,2]
[356334368,1742287844140,-508.40363775,8.219e-05,2]
[356334370,1742287844150,-500.0,8.219e-05,2]
[356334372,1742287844159,-500.0,8.219e-05,2]
[356334373,1742287844169,-500.0,8.219e-05,2]
[356334375,1742287844178,-514.15184079,8.219e-05,2]
[356334377,1742287844196,-505.7213477,8.219e-05,2]
[356334378,1742287844206,-500.0,8.219e-05,2]
[356334380,1742287844216,-500.0,8.219e-05,2]
[356334382,1742287844225,-500.0,8.219e-05,2]
[356334383,1742287844235,-500.0,8.219e-05,2]
[356334385,1742287844244,-500.0,8.219e-05,2]
[356334387,1742287844253,-506.9825916,8.219e-05,2]
[356334388,1742287844263,-502.98501909,8.219e-05,2]
[356334390,1742287844272,-500.0,8.219e-05,2]
[356334392,1742287844281,-500.0,8.219e-05,2]
[356334393,1742287844291,-500.0,8.219e-05,2]
[356334395,1742287844301,-500.0,8.219e-05,2]
[356334396,1742287844310,-500.0,8.219e-05,2]
[356334398,1742287844319,-502.2429546,8.219e-05,2]
[356334400,1742287844329,-500.0,8.219e-05,2]
[356334401,1742287844338,-201.04987398,8.219e-05,2]
[356334403,1742287844347,-500.0,8.219e-05,2]
[356334405,1742287844357,-500.0,8.219e-05,2]
[356334406,1742287844366,-501.6976236,8.219e-05,2]
[356334408,1742287844376,-397.9794597,8.219e-05,2]
[356334410,1742287844385,-501.69521235,8.219e-05,2]
[356334411,1742287844395,-500.0,8.219e-05,2]
[356334413,1742287844404,-500.0,8.219e-05,2]
[356334415,1742287844414,-502.11498399,8.219e-05,2]
[356334416,1742287844423,-500.0,8.219e-05,2]
[356334418,1742287844433,-500.0,8.219e-05,2]
[356334420,1742287844443,-500.0,8.219e-05,2]
[356334421,1742287844452,-500.0,8.219e-05,2]
[356334423,1742287844461,-500.0,8.219e-05,2]
[356334424,1742287844470,-500.0,8.219e-05,2]
[356334426,1742287844482,-500.0,8.219e-05,2]
[356334428,1742287844492,-500.0,8.219e-05,2]
[356334429,1742287844503,-505.70294145,8.219e-05,2]
[356334431,1742287844514,-500.0,8.219e-05,2]
[356334433,1742287844528,-501.81102409,8.219e-05,2]
[356334435,1742287844536,-501.30081675,8.219e-05,2]
[356334436,1742287844546,-500.0,8.219e-05,2]
[356334438,1742287844555,-500.0,8.219e-05,2]
[356334439,1742287844565,-500.98243124,8.219e-05,2]
[356334441,1742287844575,-395.24417276,8.219e-05,2]
[356334443,1742287844584,-516.41446618,8.219e-05,2]
[356334444,1742287844593,-317.73901778,8.219e-05,2]
[356334446,1742287844602,-504.39598858,8.219e-05,2]
[356334448,1742287844611,-206.80813404,8.219e-05,2]
[356334449,1742287844621,-500.0,8.219e-05,2]
[356334451,1742287844629,-504.53338678,8.219e-05,2]
[356334452,1742287844638,-388.08399499,8.219e-05,2]
[356334454,1742287844647,-500.0,8.219e-05,2]
[356334456,1742287844657,-500.0,8.219e-05,2]
[356334457,1742287844666,-504.82723058,8.219e-05,2]
[356334459,1742287844676,-503.70867179,8.219e-05,2]
[356334461,1742287844686,-500.0,8.219e-05,2]
[356334462,1742287844695,-500.0,8.219e-05,2]
[356334464,1742287844704,-507.53336463,8.219e-05,2]